Workbook

Sheet OneVarMCSim (hidden)
A1: Results of Monte Carlo Simulation | AK1: 0 | AL1: 0
A2: Sample Number | F2: Simulation Stats | AH2: 0 | AK2: 0 | AL2: 0
A3: 1 | G3: repetitions | AH3: 0.1290322542 | AI3: 0 | AK3: 0.1290322542 | AL3: 0
A4: 2 | G4: seconds | I4: Summary Statistics | L4: Notes | AH4: 0.2580645084 | AI4: 3 | AK4: 0.1290322542 | AL4: 3
A5: 3 | I5: Average | J5: 1.16710423 | AH5: 0.3870967627 | AI5: 4 | AK5: 0.2580645084 | AL5: 3
A6: 4 | I6: SD | J6: 0.5760398821 | AH6: 0.5161290169 | AI6: 8 | AK6: 0.2580645084 | AL6: 4
A7: 5 | I7: Max | J7: 2.5793023 | AH7: 0.6451612711 | AI7: 4 | AK7: 0.3870967627 | AL7: 4
A8: 6 | I8: Min | J8: 0.2134278418 | AH8: 0.7741935253 | AI8: 9 | AK8: 0.3870967627 | AL8: 8
A9: 7 | AH9: 0.9032257795 | AI9: 9 | AK9: 0.5161290169 | AL9: 8
A10: 8 | AH10: 1.032258034 | AI10: 12 | AK10: 0.5161290169 | AL10: 4
A11: 9 | AH11: 1.161290288 | AI11: 8 | AK11: 0.6451612711 | AL11: 4
A12: 10 | AH12: 1.290322542 | AI12: 3 | AK12: 0.6451612711 | AL12: 9
A13: 11 | AH13: 1.419354796 | AI13: 6 | AK13: 0.7741935253 | AL13: 9
A14: 12 | AH14: 1.548387051 | AI14: 7 | AK14: 0.7741935253 | AL14: 9
A15: 13 | AH15: 1.677419305 | AI15: 6 | AK15: 0.9032257795 | AL15: 9
A16: 14 | AH16: 1.806451559 | AI16: 6 | AK16: 0.9032257795 | AL16: 12
A17: 15 | AH17: 1.935483813 | AI17: 2 | AK17: 1.032258034 | AL17: 12
A18: 16 | AH18: 2.064516068 | AI18: 5 | AK18: 1.032258034 | AL18: 8
A19: 17 | AH19: 2.193548322 | AI19: 2 | AK19: 1.161290288 | AL19: 8
A20: 18 | AH20: 2.322580576 | AI20: 3 | AK20: 1.161290288 | AL20: 3
A21: 19 | AH21: 2.45161283 | AI21: 2 | AK21: 1.290322542 | AL21: 3
A22: 20 | AH22: 2.580645084 | AI22: 1 | AK22: 1.290322542 | AL22: 6
A23: 21 | AH23: 2.709677339 | AI23: 0 | AK23: 1.419354796 | AL23: 6
A24: 22 | AH24: 2.838709593 | AI24: 0 | AK24: 1.419354796 | AL24: 7
A25: 23 | AH25: 2.967741847 | AI25: 0 | AK25: 1.548387051 | AL25: 7
A26: 24 | AH26: 3.096774101 | AI26: 0 | AK26: 1.548387051 | AL26: 6
A27: 25 | AH27: 3.225806355 | AI27: 0 | AK27: 1.677419305 | AL27: 6
A28: 26 | AH28: 3.35483861 | AI28: 0 | AK28: 1.677419305 | AL28: 6
A29: 27 | AH29: 3.483870864 | AI29: 0 | AK29: 1.806451559 | AL29: 6
A30: 28 | AH30: 3.612903118 | AI30: 0 | AK30: 1.806451559 | AL30: 2
A31: 29 | AH31: 3.741935372 | AI31: 0 | AK31: 1.935483813 | AL31: 2
A32: 30 | AH32: 3.870967627 | AI32: 0 | AK32: 1.935483813 | AL32: 5
A33: 31 | AH33: 3.999999881 | AI33: 0 | AK33: 2.064516068 | AL33: 5
A34: 32 | AK34: 2.064516068 | AL34: 2
A35: 33 | AK35: 2.193548322 | AL35: 2
A36: 34 | AK36: 2.193548322 | AL36: 3
A37: 35 | AK37: 2.322580576 | AL37: 3
A38: 36 | AK38: 2.322580576 | AL38: 2
A39: 37 | AK39: 2.45161283 | AL39: 2
A40: 38 | AK40: 2.45161283 | AL40: 1
A41: 39 | AK41: 2.580645084 | AL41: 1
A42: 40 | AK42: 2.580645084 | AL42: 0
A43: 41 | AK43: 2.709677339 | AL43: 0
A44: 42 | AK44: 2.709677339 | AL44: 0
A45: 43 | AK45: 2.838709593 | AL45: 0
A46: 44 | AK46: 2.838709593 | AL46: 0
A47: 45 | AK47: 2.967741847 | AL47: 0
A48: 46 | AK48: 2.967741847 | AL48: 0
A49: 47 | AK49: 3.096774101 | AL49: 0
A50: 48 | AK50: 3.096774101 | AL50: 0
A51: 49 | AK51: 3.225806355 | AL51: 0
A52: 50 | AK52: 3.225806355 | AL52: 0
A53: 51 | AK53: 3.35483861 | AL53: 0
A54: 52 | AK54: 3.35483861 | AL54: 0
A55: 53 | AK55: 3.483870864 | AL55: 0
A56: 54 | AK56: 3.483870864 | AL56: 0
A57: 55 | AK57: 3.612903118 | AL57: 0
A58: 56 | AK58: 3.612903118 | AL58: 0
A59: 57 | AK59: 3.741935372 | AL59: 0
A60: 58 | AK60: 3.741935372 | AL60: 0
A61: 59 | AK61: 3.870967627 | AL61: 0
A62: 60 | AK62: 3.870967627 | AL62: 0
A63: 61 | AK63: 3.999999881 | AL63: 0
A64: 62 | AK64: 3.999999881 | AL64: 0
A65: 63
A66: 64
A67: 65
A68: 66
A69: 67
A70: 68
A71: 69
A72: 70
A73: 71
A74: 72
A75: 73
A76: 74
A77: 75
A78: 76
A79: 77
A80: 78
A81: 79
A82: 80
A83: 81
A84: 82
A85: 83
A86: 84
A87: 85
A88: 86
A89: 87
A90: 88
A91: 89
A92: 90
A93: 91
A94: 92
A95: 93
A96: 94
A97: 95
A98: 96
A99: 97
A100: 98
A101: 99
A102: 100
A103: Only the first 100 repetitions are displayed on this worksheet.

Sheet TwoVarMCSim (hidden)
A1: Results of Monte Carlo Simulation
A2: Sample Number | B2: Var1 | C2: Var2 | F2: Simulation Stats
A3: 1 | G3: repetitions
A4: 2 | G4: secs | I4: Var1 | K4: Var2 | M4: Notes
A5: 3 | I5: Average | J5: 0.003891987077 | K5: Average | L5: 0.003355620617
A6: 4 | I6: SD | J6: 0.1659865299 | K6: SD | L6: 0.1488266145
A7: 5 | I7: Max | J7: 0.5008107016 | K7: Max | L7: 0.4001902531
A8: 6 | I8: Min | J8: -0.5496349566 | K8: Min | L8: -0.4673416415
A9: 7
A10: 8
A11: 9
A12: 10
A13: 11
A14: 12
A15: 13
A16: 14
A17: 15
A18: 16
A19: 17 | F19: 1
A20: 18
A21: 19
A22: 20
A23: 21
A24: 22
A25: 23
A26: 24
A27: 25
A28: 26
A29: 27
A30: 28
A31: 29
A32: 30
A33: 31
A34: 32
A35: 33
A36: 34
A37: 35
A38: 36
A39: 37
A40: 38
A41: 39
A42: 40
A43: 41
A44: 42
A45: 43
A46: 44
A47: 45
A48: 46
A49: 47
A50: 48
A51: 49
A52: 50
A53: 51
A54: 52
A55: 53
A56: 54
A57: 55
A58: 56
A59: 57
A60: 58
A61: 59
A62: 60
A63: 61
A64: 62
A65: 63
A66: 64
A67: 65
A68: 66
A69: 67
A70: 68
A71: 69
A72: 70
A73: 71
A74: 72
A75: 73
A76: 74
A77: 75
A78: 76
A79: 77
A80: 78
A81: 79
A82: 80
A83: 81
A84: 82
A85: 83
A86: 84
A87: 85
A88: 86
A89: 87
A90: 88
A91: 89
A92: 90
A93: 91
A94: 92
A95: 93
A96: 94
A97: 95
A98: 96
A99: 97
A100: 98
A101: 99
A102: 100
A103: Only the first 100 repetitions are displayed on this worksheet.

Sheet Intro
A1: This workbook illustrates the effect of probability of selection on sample regression estimates
A3: Source Paper:
A4: Barreto and Raghav (2013) "Understanding and Teaching Unequal Probability of Selection", Journal of Econometric Methods:
A5: https://www.degruyterbrill.com/document/doi/10.1515/jem-2012-0017/html
A7: This workbook contains Visual Basic code for two key functions:
A8: 1) SAMPLE(PopRange, ProbRange, n, Optional WithRep) enables sampling from a population
A9: 2) LINESTW(YRange, XRange, WeightRange) computes probability weighted least squares estimates
A11: You must enable macros for these functions to work.
A13: Both functions are Excel array functions. Instead of Enter, Ctrl-Shift-Enter is required. Click Esc to exit an array function without making any changes.
A15: Monte Carlo simulation code in this workbook is based on Barreto and Howland's MCSim.xla Excel add-in.
A16: http://www.wabash.edu/econometrics/EconometricsBook/Basic%20Tools/ExcelAddIns/MCSim.htm
A18: The Idea: | N18: Toy Sampling Example:
A19: A simple random sample (SRS) means each item in the population is equally likely to be chosen -- simple means basic, not easy. | N19: Sample size of one.
A20: Much more common in surveys, especially large, complex surveys like the CPS, is unequal probability of selection. | N20: Hospital | O20: Patients | W20: Hospital A | X20: Hospital B | AA20: 1 is a particular patient is selected
N21: A | O21: 4 | W21: Rolando | X21: Jose | Y21: =IF(RAND()<0.5,"A","B") -> A | Z21: selected hospital | AA21: =IF($Y$23=W21,1,0) -> 0 | AB21: =IF($Y$23=X21,1,0) -> 0
A22: Suppose you want to sample hospital patients. There is no list of hospital patients, but there is a list of hospitals. | N22: B | O22: 2 | W22: Mariceli | X22: Humberto | Y22: =RAND() -> 0.9782518648 | Z22: RAND | AA22: =IF($Y$23=W22,1,0) -> 0 | AB22: =IF($Y$23=X22,1,0) -> 0
A23: You decide to sample from the hospital list and then survey every patient in the hospitals in your sample. | N23: SRS is "put all patients in a box, draw 1" so each patient has a 1/6 chance of being selected. | W23: Jorge | Y23: =IF(Y21="A",IF(Y22<0.25,W21,IF(Y22<0.5,W22,IF(Y22<0.75,W23,W24))),IF(Y22<0.5,X21,X22)) -> Delmi | Z23: selected patient | AA23: =IF($Y$23=W23,1,0) -> 0
A24: Is that SRS? Only if the hospitals have exactly the same number of patients. | N24: CPS is "sample one hospital, then sample one patient" | W24: Delmi | AA24: =IF($Y$23=W24,1,0) -> 1
A25: If they do not, then patients in smaller hospitals are more likely to be chosen. Look at the toy example to the right. --> | N25: If you are in A, you have a 1/2 times 1/4 chance of being selected: | AA25: Track Rolando and Jose in a sim (using the button below).
O26: =(1/2)*(1/4) -> 0.125 | AA26: What do you get?
A27: CPS is a complex sampling scheme. There is no list of 340M people in the US. | N27: If you are in B, you have a 1/2 times 1/2 chance of being selected:
A28: The CPS has a super complicated process of strata (like states) and clusters (city blocks). | O28: =(1/2)*(1/2) -> 0.25
A29: You are much more likely to be selected if you are in Wyoming or you are Hispanic. | N29: In upcoming work, we take the inverse (reciprocal) of the chances of being selected to compute a probability weight:
O30: =1/O26 -> 8 | P30: people represented by a sample A patient
A31: So the big question here is: "What is the effect of unequal probability of selection on OLS?" | O31: =1/O28 -> 4 | P31: people represented by a sample B patient
A32: Before we find out the answer, let's make sure we know how violations of a well-behaved DGP can affect OLS: | N32: "But there aren’t 8*4 + 4*2 = 40 patients!"
N33: Right, you NEVER sum weights of all patients. Remember, 1/2 chance of A and B so 0.5*8 + 0.5*4 = 6.
A34: What two bad things can happen when you use OLS on a DGP that does not meet the requirements for OLS to be BLUE? | N34: If the sampled patient happens to be from A, that person represents 8 people; if from B, that person represents 4 people.
N35: But this does not mean the population is 8 or 4 or 8 + 4 = 12.
N36: It means the one sampled unit is “inflated” to represent the population.

Sheet ChatGPT (hidden)
A1: What two bad things can happen when you use OLS on a DGP that does not meet the requirements for OLS to be BLUE?
A3: Citation: ChatGPT's reply on November 20, 2025:
A5: Two distinct “bad things” can happen, depending on which OLS assumptions fail. They fall into two separate categories:
A7: 1. Loss of Unbiasedness (or Consistency) — OLS no longer targets the truth
A9: This happens when the exogeneity assumption fails: | G9: A simple interpretation of the "exogeneity assumption": "the included Xs cannot be connected to the error term," exogenous means "outside the system" like an exogenous variable is fixed and does not change as endoegnous variables are changed
A11: Examples: omitted variables, simultaneity, measurement error in regressors, sample selection, reverse causality.
A13: Bad consequence:
A15: OLS is biased and inconsistent.
A17: You may get the wrong sign, the wrong size, or completely misleading estimates.
A19: This is the big problem—OLS stops telling you the correct causal or structural effect.
A23: 2. Loss of Efficiency (and wrong standard errors) — inference becomes invalid
A25: This happens when OLS is still unbiased but not BLUE:
A27: Heteroskedasticity
A29: Serial correlation
A31: Clustered errors
A33: Non-spherical error covariance
A35: Bad consequences:
A37: (a) OLS is no longer efficient
A39: It is still unbiased (if exogeneity holds),
A41: but it is not minimum variance among linear unbiased estimators.
A43: You could do better with GLS or robust methods.
A45: (b) OLS standard errors become wrong
A47: Because OLS formulas assume homoskedastic, uncorrelated errors, violation means:
A49: Standard errors are biased (usually too small).
A51: (t)-tests are invalid.
A53: Confidence intervals are wrong.
A55: Hypothesis tests give incorrect significance.
A57: This is often the practical bad outcome even when point estimates are fine.
A61: In short: the two bad things
A63: 1. The OLS coefficient estimates can be wrong (biased/inconsistent).
A65: 2. The OLS inference can be wrong (inefficient estimator, wrong standard errors → invalid hypothesis tests).
A67: NEXT STEP
A69: Go to the DGP sheet and refer to the detailed documentation in the Doc sheet or the published paper (link at top in Intro sheet), if needed.
A70: Read and scroll right in the DGP sheet and at the end (column AF) you will see a series of tasks that will show you the effect of unequal probability of selection on OLS.
A71: There are a series of simulations you can run to demonstrate the effect of unequal probability of selection on OLS -- not surprisingly, it causes trouble.
A72: The specific trouble depends on the kind of unequal probability of selection.
A74: Use the Refresh button (instead of F9) to see changes in the chart in the DGP sheet.
A76: PLEASE PROCEED TO THE DGP SHEET

Sheet DGP (hidden)
A1: DGP Parameters | C1: Schooling (Years) | D1: Wage ($/hr) | F1: Describing the Population | K1: Equal | L1: Assigning Probability | O1: Unequal (Schooling) | P1: Unequal (Wage) | R1: Prob 1st Draw | S1: Schooling (Years) | T1: Wage ($/hr) | U1: Weight (WR) | V1: =sampletype(R2) -> A Single Sample: Equal Prob, WR | BF1: schooling | BG1: true | BH1: ols | BI1: wls | BJ1: bubble size
A2: slope | B2: 2 | C2: 14 | D2: 24.49 | K2: =1/1000 -> 0.001 | M2: Prob | N2: Prob | O2: =IF(C2=12,$M$4,IF(C2=13,$M$5,IF(C2=14,$M$6,IF(C2=15,$M$7,$M$8)))) -> 0.0004715637255 | P2: =IF(D2<20,$M$14,IF(D2<24,$M$15,IF(D2<28,$M$16,IF(D2<32,$M$17,$M$18)))) -> 0.0007858778626 | Q2: =IF(AND(S2=12,T2=7.97),1,0) -> 0 | R2: =[1]!sample(C2:D1001,K2:K1001,100,1) -> 0.001 | S2: 15 | T2: 30.23 | U2: =1/(1-((1-R2)^100)) -> 10.50333528 | V2: Estimated slope via OLS | Z2: Estimated slope via probW LS | BF2: 11.5 | BG2: =$I$8+$I$10*BF2 -> 22.67174198 | BH2: =IF($AD$9=1,$W$3+$V$3*BF2,#N/A) ->  | BI2: =IF($AD$12=1,$AA$3+$Z$3*BF2,#N/A) ->  | BJ2: 10
A3: SD | B3: 5 | C3: 14 | D3: 26.46 | K3: =1/1000 -> 0.001 | L3: Schooling | M3: 1st Draw | N3: Inclusion (WR) | O3: 0.0004715637255 | P3: 0.0007858778626 | Q3: =IF(AND(S3=12,T3=7.97),1,0) -> 0 | R3: 0.001 | S3: 12 | T3: 13.81 | U3: =1/(1-((1-R3)^100)) -> 10.50333528 | V3: =LINEST(T2:T101,S2:S101,1,1) -> 2.58520202 | W3: -8.008328283 | X3: b1 | Z3: =LINESTw(T2:T101,S2:S101,U2:U101) -> 2.58520202 | AA3: -8.008328283 | BF3: 11.51 | BG3: =$I$8+$I$10*BF3 -> 22.69199847 | BH3: =IF($AD$9=1,$W$3+$V$3*BF3,#N/A) ->  | BI3: =IF($AD$12=1,$AA$3+$Z$3*BF3,#N/A) ->  | BJ3: 10
C4: 13 | D4: 24.09 | K4: 0.001 | L4: 12 | M4: 0.003 | N4: =(1-((1-M4)^100)) -> 0.2595157405 | O4: 0.001 | P4: 0.0007858778626 | Q4: 0 | R4: 0.001 | S4: 16 | T4: 33.84 | U4: 10.50333528 | V4: 0.3554966328 | W4: 5.002028381 | X4: =SLOPE($D$2:$D$1001,$C$2:$C$1001) -> 2.025648978 | Z4: 0.3670195628 | AA4: 5.232699351 | BF4: 11.52 | BG4: 22.71225496 | BJ4: 10
A5: Example | C5: 15 | D5: 26.08 | K5: 0.001 | L5: 13 | M5: 0.001 | N5: =(1-((1-M5)^100)) -> 0.09520785289 | O5: 0.0004 | P5: 0.0007858778626 | Q5: 0 | R5: 0.001 | S5: 16 | T5: 27.28 | U5: 10.50333528 | V5: 0.3504911139 | W5: 5.002281028 | Z5: 0.3504911139 | AA5: 5.002281028 | BF5: 11.53 | BG5: 22.73251145 | BJ5: 10
A6: =ROUND(RAND()*5+11.5,0) -> 12 | B6: =ROUND(slope*A6+NORMINV(RAND(),0,SD),2) -> 23.16 | C6: 13 | D6: 31.29 | K6: 0.001 | L6: 14 | M6: 0.0004715637255 | N6: =(1-((1-M6)^100)) -> 0.04607239357 | O6: 0.001 | P6: 0.0004 | Q6: 0 | R6: 0.001 | S6: 14 | T6: 29.42 | U6: 10.50333528 | V6: 52.88323207 | W6: 98 | X6: Use F9 or Refresh (in chart) | BF6: 11.54 | BG6: 22.75276794 | BJ6: 10
A7: Press F9 to draw a new | C7: 15 | D7: 35.49 | I7: b0 | K7: 0.001 | L7: 15 | M7: 0.0004 | N7: =(1-((1-M7)^100)) -> 0.03921824918 | O7: 0.0004 | P7: 0.0001 | Q7: 0 | R7: 0.001 | S7: 14 | T7: 33.95 | U7: 10.50333528 | V7: 1323.287358 | W7: 2452.235917 | X7: to draw another sample | BF7: 11.55 | BG7: 22.77302443 | BJ7: 10
A8: observation above | C8: 15 | D8: 27.42 | I8: =INTERCEPT($D$2:$D$1001,$C$2:$C$1001) -> -0.6232212665 | K8: 0.001 | L8: 16 | M8: 0.0002 | N8: =(1-((1-M8)^100)) -> 0.01980328735 | O8: 0.0004 | P8: 0.0007858778626 | Q8: 0 | R8: 0.001 | S8: 15 | T8: 20.18 | U8: 10.50333528 | BF8: 11.56 | BG8: 22.79328092 | BJ8: 10
C9: 14 | D9: 25.53 | I9: b1 | K9: 0.001 | O9: 0.0004715637255 | P9: 0.0007858778626 | Q9: 0 | R9: 0.001 | S9: 13 | T9: 19.18 | U9: 10.50333528 | Y9: Schooling | Z9: Pop | AA9: OLS | AB9: W LS | AD9: 0 | BF9: 11.57 | BG9: 22.81353741 | BJ9: 10
A10: The data in columns | C10: 12 | D10: 20.11 | I10: =SLOPE($D$2:$D$1001,$C$2:$C$1001) -> 2.025648978 | K10: 0.001 | L10: pop sum prob | M10: =SUM(O2:O1001) -> 0.999999 | O10: 0.003 | P10: 0.0015 | Q10: 0 | R10: 0.001 | S10: 12 | T10: 26.84 | U10: 10.50333528 | Y10: 12 | Z10: =INTERCEPT($D$2:$D$1001,$C$2:$C$1001)+SLOPE($D$2:$D$1001,$C$2:$C$1001)*Y10 -> 23.68456647 | AA10: =$W$3+$V$3*Y10 -> 23.01409596 | AB10: =$AA$3+$Z$3*Y10 -> 23.01409596 | BF10: 11.58 | BG10: 22.8337939 | BJ10: 10
A11: C and D were created | C11: 13 | D11: 25.09 | I11: Approximately 2.02565 | K11: 0.001 | O11: 0.001 | P11: 0.0007858778626 | Q11: 0 | R11: 0.001 | S11: 16 | T11: 25.68 | U11: 10.50333528 | Y11: 16 | Z11: =INTERCEPT($D$2:$D$1001,$C$2:$C$1001)+SLOPE($D$2:$D$1001,$C$2:$C$1001)*Y11 -> 31.78716238 | AA11: =$W$3+$V$3*Y11 -> 33.35490404 | AB11: =$AA$3+$Z$3*Y11 -> 33.35490404 | BF11: 11.59 | BG11: 22.85405039 | BJ11: 10
A12: by using the formulas in | C12: 15 | D12: 26.74 | K12: 0.001 | M12: Prob | N12: Prob | O12: 0.0004 | P12: 0.0007858778626 | Q12: 0 | R12: 0.001 | S12: 13 | T12: 30.9 | U12: 10.50333528 | AD12: 0 | BF12: 11.6 | BG12: 22.87430688 | BJ12: 10
A13: cells A6 and B6, then | C13: 13 | D13: 29.36 | K13: 0.001 | L13: Wage Prob | M13: 1st Draw | N13: Inclusion (WR) | O13: 0.001 | P13: 0.0004 | Q13: 0 | R13: 0.001 | S13: 12 | T13: 22.9 | U13: 10.50333528 | BF13: 11.61 | BG13: 22.89456337 | BJ13: 10
A14: copying and pasting as | C14: 14 | D14: 29.42 | K14: 0.001 | L14: <20 | M14: 0.005 | N14: =(1-((1-M14)^100)) -> 0.3942295635 | O14: 0.0004715637255 | P14: 0.0004 | Q14: 0 | R14: 0.001 | S14: 16 | T14: 32.39 | U14: 10.50333528 | BF14: 11.62 | BG14: 22.91481986 | BJ14: 10
A15: values. | C15: 15 | D15: 21.13 | K15: 0.001 | L15: 20 to 23.99 | M15: 0.0015 | N15: =(1-((1-M15)^100)) -> 0.1393889447 | O15: 0.0004 | P15: 0.0015 | Q15: 0 | R15: 0.001 | S15: 16 | T15: 31.97 | U15: 10.50333528 | BF15: 11.63 | BG15: 22.93507635 | BJ15: 10
A16: This produces a fixed | C16: 12 | D16: 28.93 | G16: Data | K16: 0.001 | L16: 24 to 27.99 | M16: 0.0007858778626 | N16: =(1-((1-M16)^100)) -> 0.07560765591 | O16: 0.003 | P16: 0.0004 | Q16: 0 | R16: 0.001 | S16: 14 | T16: 26.21 | U16: 10.50333528 | BF16: 11.64 | BG16: 22.95533284 | BJ16: 10
A17: finite population from | C17: 12 | D17: 14.97 | F17: Schooling (Years) | G17: Count of Wage ($/hr) | H17: Average of Wage ($/hr) | I17: StdDevp of Wage ($/hr) | K17: 0.001 | L17: 28 to 31.99 | M17: 0.0004 | N17: =(1-((1-M17)^100)) -> 0.03921824918 | O17: 0.003 | P17: 0.005 | Q17: 0 | R17: 0.001 | S17: 14 | T17: 30.12 | U17: 10.50333528 | BF17: 11.65 | BG17: 22.97558933 | BJ17: 10
A18: which samples will be | C18: 15 | D18: 23.72 | F18: 12 | G18: 196 | H18: 23.67795918 | I18: 4.685846679 | K18: 0.001 | L18: 32+ | M18: 0.0001 | N18: =(1-((1-M18)^100)) -> 0.009950661309 | O18: 0.0004 | P18: 0.0015 | Q18: 0 | R18: 0.001 | S18: 13 | T18: 28.51 | U18: 10.50333528 | BF18: 11.66 | BG18: 22.99584582 | BJ18: 10
A19: taken. | C19: 15 | D19: 33.94 | F19: 13 | G19: 195 | H19: 25.98194872 | I19: 4.660616807 | K19: 0.001 | O19: 0.0004 | P19: 0.0001 | Q19: 0 | R19: 0.001 | S19: 15 | T19: 26.63 | U19: 10.50333528 | BF19: 11.67 | BG19: 23.01610231 | BJ19: 10
C20: 14 | D20: 38.06 | F20: 14 | G20: 204 | H20: 27.63196078 | I20: 5.150839079 | K20: 0.001 | L20: pop sum prob | M20: =SUM(P2:P1001) -> 1 | O20: 0.0004715637255 | P20: 0.0001 | Q20: 0 | R20: 0.001 | S20: 14 | T20: 26.13 | U20: 10.50333528 | BF20: 11.68 | BG20: 23.0363588 | BJ20: 10
C21: 12 | D21: 25.14 | F21: 15 | G21: 199 | H21: 29.20175879 | I21: 5.154190316 | K21: 0.001 | O21: 0.003 | P21: 0.0007858778626 | Q21: 0 | R21: 0.001 | S21: 14 | T21: 20.01 | U21: 10.50333528 | BF21: 11.69 | BG21: 23.05661529 | BJ21: 10
C22: 13 | D22: 17.06 | F22: 16 | G22: 206 | H22: 32.17985437 | I22: 4.78569749 | K22: 0.001 | O22: 0.001 | P22: 0.005 | Q22: 0 | R22: 0.001 | S22: 15 | T22: 30.86 | U22: 10.50333528 | V22: Click Refresh (in chart) to update the table below (F9 will not recalculate this PivotTable). | BF22: 11.7 | BG22: 23.07687178 | BJ22: 10
C23: 14 | D23: 27.47 | F23: Grand Total | G23: 1000 | H23: 27.78448 | I23: 5.68148443 | K23: 0.001 | O23: 0.0004715637255 | P23: 0.0007858778626 | Q23: 0 | R23: 0.001 | S23: 16 | T23: 35.38 | U23: 10.50333528 | X23: Count of Schooling (Years) | BF23: 11.71 | BG23: 23.09712827 | BJ23: 10
C24: 13 | D24: 27.46 | K24: 0.001 | O24: 0.001 | P24: 0.0007858778626 | Q24: 0 | R24: 0.001 | S24: 15 | T24: 27.9 | U24: 10.50333528 | X24: Schooling (Years) | Y24: Total | Z24: % of Pop | BF24: 11.72 | BG24: 23.11738475 | BJ24: 10
C25: 16 | D25: 37.41 | K25: 0.001 | O25: 0.0002 | P25: 0.0001 | Q25: 0 | R25: 0.001 | S25: 13 | T25: 26.68 | U25: 10.50333528 | X25: 12 | Y25: 22 | Z25: =Y25/G18 -> 0.112244898 | AC25: Click an option to quickly | BF25: 11.73 | BG25: 23.13764124 | BJ25: 10
C26: 15 | D26: 31.47 | F26: Wage | G26: Count | K26: 0.001 | O26: 0.0004 | P26: 0.0004 | Q26: 0 | R26: 0.001 | S26: 16 | T26: 35.06 | U26: 10.50333528 | X26: 13 | Y26: 20 | Z26: 0.1025641026 | AC26: modify the SAMPLE array | BF26: 11.74 | BG26: 23.15789773 | BJ26: 10
C27: 13 | D27: 27.01 | F27: <20 | G27: =COUNTIF($D$2:$D$1001,"<20") -> 81 | K27: 0.001 | O27: 0.001 | P27: 0.0007858778626 | Q27: 0 | R27: 0.001 | S27: 16 | T27: 34.02 | U27: 10.50333528 | X27: 14 | Y27: 18 | Z27: 0.08823529412 | AC27: function in columns R, S, and T. | BF27: 11.75 | BG27: 23.17815422 | BJ27: 10
C28: 12 | D28: 14.19 | F28: 20 to 23.99 | G28: =COUNTIF($D$2:$D$1001,"<24")-COUNTIF($D$2:$D$1001,"<20") -> 177 | K28: 0.001 | O28: 0.003 | P28: 0.005 | Q28: 0 | R28: 0.001 | S28: 16 | T28: 37.4 | U28: 10.50333528 | X28: 15 | Y28: 17 | Z28: 0.08542713568 | BF28: 11.76 | BG28: 23.19841071 | BJ28: 10
C29: 13 | D29: 35.84 | F29: 24 to 27.99 | G29: =COUNTIF($D$2:$D$1001,"<28")-COUNTIF($D$2:$D$1001,"<24") -> 262 | K29: 0.001 | O29: 0.001 | P29: 0.0001 | Q29: 0 | R29: 0.001 | S29: 14 | T29: 29.77 | U29: 10.50333528 | X29: 16 | Y29: 23 | Z29: 0.1116504854 | AA29: 1 | BF29: 11.77 | BG29: 23.2186672 | BJ29: 10
C30: 13 | D30: 32.77 | F30: 28 to 31.99 | G30: =COUNTIF($D$2:$D$1001,"<32")-COUNTIF($D$2:$D$1001,"<28") -> 252 | K30: 0.001 | O30: 0.001 | P30: 0.0001 | Q30: 0 | R30: 0.001 | S30: 14 | T30: 30.12 | U30: 10.50333528 | X30: Grand Total | Y30: 100 | Z30: 0.1 | BF30: 11.78 | BG30: 23.23892369 | BJ30: 10
C31: 12 | D31: 20.53 | F31: 32+ | G31: =COUNTIF($D$2:$D$1001,">=32") -> 228 | K31: 0.001 | O31: 0.003 | P31: 0.0015 | Q31: 0 | R31: 0.001 | S31: 16 | T31: 34.72 | U31: 10.50333528 | BF31: 11.79 | BG31: 23.25918018 | BJ31: 10
C32: 12 | D32: 16.33 | G32: =SUM(G27:G31) -> 1000 | K32: 0.001 | O32: 0.003 | P32: 0.005 | Q32: 0 | R32: 0.001 | S32: 15 | T32: 30.54 | U32: 10.50333528 | BF32: 11.8 | BG32: 23.27943667 | BJ32: 10
C33: 14 | D33: 34.76 | K33: 0.001 | O33: 0.0004715637255 | P33: 0.0001 | Q33: 0 | R33: 0.001 | S33: 13 | T33: 33.89 | U33: 10.50333528 | BF33: 11.81 | BG33: 23.29969316 | BJ33: 10
C34: 13 | D34: 25.09 | K34: 0.001 | O34: 0.001 | P34: 0.0007858778626 | Q34: 0 | R34: 0.001 | S34: 15 | T34: 21.93 | U34: 10.50333528 | BF34: 11.82 | BG34: 23.31994965 | BJ34: 10
C35: 13 | D35: 29.97 | K35: 0.001 | O35: 0.001 | P35: 0.0004 | Q35: 0 | R35: 0.001 | S35: 12 | T35: 29.06 | U35: 10.50333528 | BF35: 11.83 | BG35: 23.34020614 | BJ35: 10
C36: 15 | D36: 29.89 | K36: 0.001 | O36: 0.0004 | P36: 0.0004 | Q36: 0 | R36: 0.001 | S36: 16 | T36: 35.27 | U36: 10.50333528 | BF36: 11.84 | BG36: 23.36046263 | BJ36: 10
C37: 12 | D37: 21.62 | K37: 0.001 | O37: 0.003 | P37: 0.0015 | Q37: 0 | R37: 0.001 | S37: 12 | T37: 15.96 | U37: 10.50333528 | BF37: 11.85 | BG37: 23.38071912 | BJ37: 10
C38: 16 | D38: 29.89 | K38: 0.001 | O38: 0.0002 | P38: 0.0004 | Q38: 0 | R38: 0.001 | S38: 12 | T38: 14.36 | U38: 10.50333528 | BF38: 11.86 | BG38: 23.40097561 | BJ38: 10
C39: 14 | D39: 19.2 | K39: 0.001 | O39: 0.0004715637255 | P39: 0.005 | Q39: 0 | R39: 0.001 | S39: 16 | T39: 31.5 | U39: 10.50333528 | BF39: 11.87 | BG39: 23.4212321 | BJ39: 10
C40: 14 | D40: 26.99 | K40: 0.001 | O40: 0.0004715637255 | P40: 0.0007858778626 | Q40: 0 | R40: 0.001 | S40: 15 | T40: 33.29 | U40: 10.50333528 | BF40: 11.88 | BG40: 23.44148859 | BJ40: 10
C41: 16 | D41: 33.2 | K41: 0.001 | O41: 0.0002 | P41: 0.0001 | Q41: 0 | R41: 0.001 | S41: 14 | T41: 29.65 | U41: 10.50333528 | BF41: 11.89 | BG41: 23.46174508 | BJ41: 10
C42: 12 | D42: 14.36 | K42: 0.001 | O42: 0.003 | P42: 0.005 | Q42: 0 | R42: 0.001 | S42: 16 | T42: 39.44 | U42: 10.50333528 | BF42: 11.9 | BG42: 23.48200157 | BJ42: 10
C43: 16 | D43: 23.09 | K43: 0.001 | O43: 0.0002 | P43: 0.0015 | Q43: 0 | R43: 0.001 | S43: 12 | T43: 19.2 | U43: 10.50333528 | BF43: 11.91 | BG43: 23.50225806 | BJ43: 10
C44: 13 | D44: 29.49 | K44: 0.001 | O44: 0.001 | P44: 0.0004 | Q44: 0 | R44: 0.001 | S44: 12 | T44: 24.47 | U44: 10.50333528 | BF44: 11.92 | BG44: 23.52251455 | BJ44: 10
C45: 15 | D45: 28.23 | K45: 0.001 | O45: 0.0004 | P45: 0.0004 | Q45: 0 | R45: 0.001 | S45: 14 | T45: 30.8 | U45: 10.50333528 | BF45: 11.93 | BG45: 23.54277104 | BJ45: 10
C46: 14 | D46: 30 | K46: 0.001 | O46: 0.0004715637255 | P46: 0.0004 | Q46: 0 | R46: 0.001 | S46: 13 | T46: 35.84 | U46: 10.50333528 | BF46: 11.94 | BG46: 23.56302753 | BJ46: 10
C47: 15 | D47: 26.92 | K47: 0.001 | O47: 0.0004 | P47: 0.0007858778626 | Q47: 0 | R47: 0.001 | S47: 15 | T47: 36.34 | U47: 10.50333528 | BF47: 11.95 | BG47: 23.58328402 | BJ47: 10
C48: 14 | D48: 25.29 | K48: 0.001 | O48: 0.0004715637255 | P48: 0.0007858778626 | Q48: 0 | R48: 0.001 | S48: 12 | T48: 27.64 | U48: 10.50333528 | BF48: 11.96 | BG48: 23.60354051 | BJ48: 10
C49: 13 | D49: 23.32 | K49: 0.001 | O49: 0.001 | P49: 0.0015 | Q49: 0 | R49: 0.001 | S49: 14 | T49: 37.92 | U49: 10.50333528 | BF49: 11.97 | BG49: 23.623797 | BJ49: 10
C50: 15 | D50: 32 | K50: 0.001 | O50: 0.0004 | P50: 0.0001 | Q50: 0 | R50: 0.001 | S50: 13 | T50: 22.88 | U50: 10.50333528 | BF50: 11.98 | BG50: 23.64405349 | BJ50: 10
C51: 16 | D51: 43.61 | K51: 0.001 | O51: 0.0002 | P51: 0.0001 | Q51: 0 | R51: 0.001 | S51: 16 | T51: 31.11 | U51: 10.50333528 | BF51: 11.99 | BG51: 23.66430998 | BJ51: 10
C52: 13 | D52: 25.79 | K52: 0.001 | O52: 0.001 | P52: 0.0007858778626 | Q52: 0 | R52: 0.001 | S52: 13 | T52: 31.63 | U52: 10.50333528 | BF52: 12 | BG52: 23.68456647 | BJ52: 10
C53: 16 | D53: 36.07 | K53: 0.001 | O53: 0.0002 | P53: 0.0001 | Q53: 0 | R53: 0.001 | S53: 12 | T53: 20.89 | U53: 10.50333528 | BF53: 12.01 | BG53: 23.70482296 | BJ53: 10
C54: 14 | D54: 31.49 | K54: 0.001 | O54: 0.0004715637255 | P54: 0.0004 | Q54: 0 | R54: 0.001 | S54: 15 | T54: 35.49 | U54: 10.50333528 | BF54: 12.02 | BG54: 23.72507945 | BJ54: 10
C55: 15 | D55: 32.62 | K55: 0.001 | O55: 0.0004 | P55: 0.0001 | Q55: 0 | R55: 0.001 | S55: 14 | T55: 26.68 | U55: 10.50333528 | BF55: 12.03 | BG55: 23.74533594 | BJ55: 10
C56: 15 | D56: 31.81 | K56: 0.001 | O56: 0.0004 | P56: 0.0004 | Q56: 0 | R56: 0.001 | S56: 16 | T56: 30.77 | U56: 10.50333528 | BF56: 12.04 | BG56: 23.76559243 | BJ56: 10
C57: 12 | D57: 33.29 | K57: 0.001 | O57: 0.003 | P57: 0.0001 | Q57: 0 | R57: 0.001 | S57: 15 | T57: 34.8 | U57: 10.50333528 | BF57: 12.05 | BG57: 23.78584892 | BJ57: 10
C58: 13 | D58: 27.98 | K58: 0.001 | O58: 0.001 | P58: 0.0007858778626 | Q58: 0 | R58: 0.001 | S58: 14 | T58: 22.7 | U58: 10.50333528 | BF58: 12.06 | BG58: 23.80610541 | BJ58: 10
C59: 13 | D59: 26.95 | K59: 0.001 | O59: 0.001 | P59: 0.0007858778626 | Q59: 0 | R59: 0.001 | S59: 14 | T59: 21.23 | U59: 10.50333528 | BF59: 12.07 | BG59: 23.8263619 | BJ59: 10
C60: 14 | D60: 21.31 | K60: 0.001 | O60: 0.0004715637255 | P60: 0.0015 | Q60: 0 | R60: 0.001 | S60: 15 | T60: 32 | U60: 10.50333528 | BF60: 12.08 | BG60: 23.84661839 | BJ60: 10
C61: 12 | D61: 24.93 | K61: 0.001 | O61: 0.003 | P61: 0.0007858778626 | Q61: 0 | R61: 0.001 | S61: 14 | T61: 26.21 | U61: 10.50333528 | BF61: 12.09 | BG61: 23.86687488 | BJ61: 10
C62: 16 | D62: 30.73 | K62: 0.001 | O62: 0.0002 | P62: 0.0004 | Q62: 0 | R62: 0.001 | S62: 12 | T62: 24.07 | U62: 10.50333528 | BF62: 12.1 | BG62: 23.88713137 | BJ62: 10
C63: 12 | D63: 22.92 | K63: 0.001 | O63: 0.003 | P63: 0.0015 | Q63: 0 | R63: 0.001 | S63: 14 | T63: 24.87 | U63: 10.50333528 | BF63: 12.11 | BG63: 23.90738786 | BJ63: 10
C64: 12 | D64: 24.07 | K64: 0.001 | O64: 0.003 | P64: 0.0007858778626 | Q64: 0 | R64: 0.001 | S64: 14 | T64: 38.99 | U64: 10.50333528 | BF64: 12.12 | BG64: 23.92764435 | BJ64: 10
C65: 12 | D65: 23.21 | K65: 0.001 | O65: 0.003 | P65: 0.0015 | Q65: 0 | R65: 0.001 | S65: 12 | T65: 28.99 | U65: 10.50333528 | BF65: 12.13 | BG65: 23.94790084 | BJ65: 10
C66: 12 | D66: 17.09 | K66: 0.001 | O66: =IF(C66=12,$M$4,IF(C66=13,$M$5,IF(C66=14,$M$6,IF(C66=15,$M$7,$M$8)))) -> 0.003 | P66: =IF(D66<20,$M$14,IF(D66<24,$M$15,IF(D66<28,$M$16,IF(D66<32,$M$17,$M$18)))) -> 0.005 | Q66: 0 | R66: 0.001 | S66: 15 | T66: 33.43 | U66: 10.50333528 | BF66: 12.14 | BG66: 23.96815733 | BJ66: 10
C67: 13 | D67: 29.94 | K67: =1/1000 -> 0.001 | O67: 0.001 | P67: 0.0004 | Q67: =IF(AND(S67=12,T67=7.97),1,0) -> 0 | R67: 0.001 | S67: 12 | T67: 23.45 | U67: =1/(1-((1-R67)^100)) -> 10.50333528 | BF67: 12.15 | BG67: =$I$8+$I$10*BF67 -> 23.98841382 | BH67: =IF($AD$9=1,$W$3+$V$3*BF67,#N/A) ->  | BI67: =IF($AD$12=1,$AA$3+$Z$3*BF67,#N/A) ->  | BJ67: 10
C68: 16 | D68: 36.7 | K68: 0.001 | O68: 0.0002 | P68: 0.0001 | Q68: 0 | R68: 0.001 | S68: 14 | T68: 32.77 | U68: 10.50333528 | BF68: 12.16 | BG68: 24.00867031 | BJ68: 10
C69: 12 | D69: 23.49 | K69: 0.001 | O69: 0.003 | P69: 0.0015 | Q69: 0 | R69: 0.001 | S69: 13 | T69: 22.04 | U69: 10.50333528 | BF69: 12.17 | BG69: 24.02892679 | BJ69: 10
C70: 12 | D70: 34.71 | K70: 0.001 | O70: 0.003 | P70: 0.0001 | Q70: 0 | R70: 0.001 | S70: 16 | T70: 33.2 | U70: 10.50333528 | BF70: 12.18 | BG70: 24.04918328 | BJ70: 10
C71: 13 | D71: 28.5 | K71: 0.001 | O71: 0.001 | P71: 0.0004 | Q71: 0 | R71: 0.001 | S71: 14 | T71: 30.52 | U71: 10.50333528 | BF71: 12.19 | BG71: 24.06943977 | BJ71: 10
C72: 14 | D72: 30.46 | K72: 0.001 | O72: 0.0004715637255 | P72: 0.0004 | Q72: 0 | R72: 0.001 | S72: 15 | T72: 34.84 | U72: 10.50333528 | BF72: 12.2 | BG72: 24.08969626 | BJ72: 10
C73: 16 | D73: 27.47 | K73: 0.001 | O73: 0.0002 | P73: 0.0007858778626 | Q73: 0 | R73: 0.001 | S73: 15 | T73: 38.08 | U73: 10.50333528 | BF73: 12.21 | BG73: 24.10995275 | BJ73: 10
C74: 15 | D74: 26.74 | K74: 0.001 | O74: 0.0004 | P74: 0.0007858778626 | Q74: 0 | R74: 0.001 | S74: 15 | T74: 39.3 | U74: 10.50333528 | BF74: 12.22 | BG74: 24.13020924 | BJ74: 10
C75: 14 | D75: 18.27 | K75: 0.001 | O75: 0.0004715637255 | P75: 0.005 | Q75: 0 | R75: 0.001 | S75: 14 | T75: 29.21 | U75: 10.50333528 | BF75: 12.23 | BG75: 24.15046573 | BJ75: 10
C76: 15 | D76: 27.9 | K76: 0.001 | O76: 0.0004 | P76: 0.0007858778626 | Q76: 0 | R76: 0.001 | S76: 12 | T76: 19.09 | U76: 10.50333528 | BF76: 12.24 | BG76: 24.17072222 | BJ76: 10
C77: 13 | D77: 27.62 | K77: 0.001 | O77: 0.001 | P77: 0.0007858778626 | Q77: 0 | R77: 0.001 | S77: 15 | T77: 30.14 | U77: 10.50333528 | BF77: 12.25 | BG77: 24.19097871 | BJ77: 10
C78: 13 | D78: 27.31 | K78: 0.001 | O78: 0.001 | P78: 0.0007858778626 | Q78: 0 | R78: 0.001 | S78: 16 | T78: 27.54 | U78: 10.50333528 | BF78: 12.26 | BG78: 24.2112352 | BJ78: 10
C79: 12 | D79: 22.3 | K79: 0.001 | O79: 0.003 | P79: 0.0015 | Q79: 0 | R79: 0.001 | S79: 15 | T79: 31.4 | U79: 10.50333528 | BF79: 12.27 | BG79: 24.23149169 | BJ79: 10
C80: 12 | D80: 20.91 | K80: 0.001 | O80: 0.003 | P80: 0.0015 | Q80: 0 | R80: 0.001 | S80: 12 | T80: 22.8 | U80: 10.50333528 | BF80: 12.28 | BG80: 24.25174818 | BJ80: 10
C81: 16 | D81: 27.54 | K81: 0.001 | O81: 0.0002 | P81: 0.0007858778626 | Q81: 0 | R81: 0.001 | S81: 12 | T81: 27.61 | U81: 10.50333528 | BF81: 12.29 | BG81: 24.27200467 | BJ81: 10
C82: 14 | D82: 33.41 | K82: 0.001 | O82: 0.0004715637255 | P82: 0.0001 | Q82: 0 | R82: 0.001 | S82: 15 | T82: 29.18 | U82: 10.50333528 | BF82: 12.3 | BG82: 24.29226116 | BJ82: 10
C83: 16 | D83: 21.35 | K83: 0.001 | O83: 0.0002 | P83: 0.0015 | Q83: 0 | R83: 0.001 | S83: 13 | T83: 24.21 | U83: 10.50333528 | BF83: 12.31 | BG83: 24.31251765 | BJ83: 10
C84: 16 | D84: 35.93 | K84: 0.001 | O84: 0.0002 | P84: 0.0001 | Q84: 0 | R84: 0.001 | S84: 12 | T84: 24.14 | U84: 10.50333528 | BF84: 12.32 | BG84: 24.33277414 | BJ84: 10
C85: 16 | D85: 30.92 | K85: 0.001 | O85: 0.0002 | P85: 0.0004 | Q85: 0 | R85: 0.001 | S85: 15 | T85: 35.21 | U85: 10.50333528 | BF85: 12.33 | BG85: 24.35303063 | BJ85: 10
C86: 13 | D86: 24.61 | K86: 0.001 | O86: 0.001 | P86: 0.0007858778626 | Q86: 0 | R86: 0.001 | S86: 13 | T86: 23.19 | U86: 10.50333528 | BF86: 12.34 | BG86: 24.37328712 | BJ86: 10
C87: 13 | D87: 23.35 | K87: 0.001 | O87: 0.001 | P87: 0.0015 | Q87: 0 | R87: 0.001 | S87: 13 | T87: 27.64 | U87: 10.50333528 | BF87: 12.35 | BG87: 24.39354361 | BJ87: 10
C88: 13 | D88: 20.29 | K88: 0.001 | O88: 0.001 | P88: 0.0015 | Q88: 0 | R88: 0.001 | S88: 14 | T88: 19.69 | U88: 10.50333528 | BF88: 12.36 | BG88: 24.4138001 | BJ88: 10
C89: 13 | D89: 28.07 | K89: 0.001 | O89: 0.001 | P89: 0.0004 | Q89: 0 | R89: 0.001 | S89: 16 | T89: 20.26 | U89: 10.50333528 | BF89: 12.37 | BG89: 24.43405659 | BJ89: 10
C90: 12 | D90: 22.16 | K90: 0.001 | O90: 0.003 | P90: 0.0015 | Q90: 0 | R90: 0.001 | S90: 14 | T90: 29.22 | U90: 10.50333528 | BF90: 12.38 | BG90: 24.45431308 | BJ90: 10
C91: 13 | D91: 30.34 | K91: 0.001 | O91: 0.001 | P91: 0.0004 | Q91: 0 | R91: 0.001 | S91: 14 | T91: 26.83 | U91: 10.50333528 | BF91: 12.39 | BG91: 24.47456957 | BJ91: 10
C92: 16 | D92: 34.53 | K92: 0.001 | O92: 0.0002 | P92: 0.0001 | Q92: 0 | R92: 0.001 | S92: 15 | T92: 31.81 | U92: 10.50333528 | BF92: 12.4 | BG92: 24.49482606 | BJ92: 10
C93: 16 | D93: 34.25 | K93: 0.001 | O93: 0.0002 | P93: 0.0001 | Q93: 0 | R93: 0.001 | S93: 14 | T93: 30.5 | U93: 10.50333528 | BF93: 12.41 | BG93: 24.51508255 | BJ93: 10
C94: 14 | D94: 29.29 | K94: 0.001 | O94: 0.0004715637255 | P94: 0.0004 | Q94: 0 | R94: 0.001 | S94: 12 | T94: 21.44 | U94: 10.50333528 | BF94: 12.42 | BG94: 24.53533904 | BJ94: 10
C95: 15 | D95: 37.92 | K95: 0.001 | O95: 0.0004 | P95: 0.0001 | Q95: 0 | R95: 0.001 | S95: 12 | T95: 25.53 | U95: 10.50333528 | BF95: 12.43 | BG95: 24.55559553 | BJ95: 10
C96: 12 | D96: 22.59 | K96: 0.001 | O96: 0.003 | P96: 0.0015 | Q96: 0 | R96: 0.001 | S96: 12 | T96: 25.14 | U96: 10.50333528 | BF96: 12.44 | BG96: 24.57585202 | BJ96: 10
C97: 13 | D97: 21.78 | K97: 0.001 | O97: 0.001 | P97: 0.0015 | Q97: 0 | R97: 0.001 | S97: 12 | T97: 13.81 | U97: 10.50333528 | BF97: 12.45 | BG97: 24.59610851 | BJ97: 10
C98: 14 | D98: 20.15 | K98: 0.001 | O98: 0.0004715637255 | P98: 0.0015 | Q98: 1 | R98: 0.001 | S98: 12 | T98: 7.97 | U98: 10.50333528 | BF98: 12.46 | BG98: 24.616365 | BJ98: 10
C99: 16 | D99: 35.63 | K99: 0.001 | O99: 0.0002 | P99: 0.0001 | Q99: 0 | R99: 0.001 | S99: 14 | T99: 27.15 | U99: 10.50333528 | BF99: 12.47 | BG99: 24.63662149 | BJ99: 10
C100: 14 | D100: 31.64 | K100: 0.001 | O100: 0.0004715637255 | P100: 0.0004 | Q100: 0 | R100: 0.001 | S100: 15 | T100: 34.26 | U100: 10.50333528 | BF100: 12.48 | BG100: 24.65687798 | BJ100: 10
C101: 14 | D101: 21.83 | K101: 0.001 | O101: 0.0004715637255 | P101: 0.0015 | Q101: 0 | R101: 0.001 | S101: 12 | T101: 27.35 | U101: 10.50333528 | BF101: 12.49 | BG101: 24.67713447 | BJ101: 10
C102: 12 | D102: 28.99 | K102: 0.001 | O102: 0.003 | P102: 0.0004 | U102: =SUM(U2:U101) -> 1050.333528 | BF102: 12.5 | BG102: 24.69739096 | BJ102: 10
C103: 14 | D103: 24.38 | K103: 0.001 | O103: 0.0004715637255 | P103: 0.0007858778626 | Q103: =IF(SUM(Q2:Q101)>0,1,0) -> 1 | S103: Sample SD | BF103: 12.51 | BG103: 24.71764745 | BJ103: 10
C104: 14 | D104: 33.12 | K104: 0.001 | O104: 0.0004715637255 | P104: 0.0001 | S104: =STDEV(S2:S101) -> 1.414213562 | BF104: 12.52 | BG104: 24.73790394 | BJ104: 10
C105: 14 | D105: 27.8 | K105: 0.001 | O105: 0.0004715637255 | P105: 0.0007858778626 | BF105: 12.53 | BG105: 24.75816043 | BJ105: 10
C106: 15 | D106: 28.96 | K106: 0.001 | O106: 0.0004 | P106: 0.0004 | BF106: 12.54 | BG106: 24.77841692 | BJ106: 10
C107: 15 | D107: 20.53 | K107: 0.001 | O107: 0.0004 | P107: 0.0015 | BF107: 12.55 | BG107: 24.79867341 | BJ107: 10
C108: 16 | D108: 27.87 | K108: 0.001 | O108: 0.0002 | P108: 0.0007858778626 | BF108: 12.56 | BG108: 24.8189299 | BJ108: 10
C109: 15 | D109: 35.03 | K109: 0.001 | O109: 0.0004 | P109: 0.0001 | BF109: 12.57 | BG109: 24.83918639 | BJ109: 10
C110: 16 | D110: 40.65 | K110: 0.001 | O110: 0.0002 | P110: 0.0001 | BF110: 12.58 | BG110: 24.85944288 | BJ110: 10
C111: 12 | D111: 23.02 | K111: 0.001 | O111: 0.003 | P111: 0.0015 | BF111: 12.59 | BG111: 24.87969937 | BJ111: 10
C112: 12 | D112: 28.37 | K112: 0.001 | O112: 0.003 | P112: 0.0004 | BF112: 12.6 | BG112: 24.89995586 | BJ112: 10
C113: 15 | D113: 30.54 | K113: 0.001 | O113: 0.0004 | P113: 0.0004 | BF113: 12.61 | BG113: 24.92021235 | BJ113: 10
C114: 12 | D114: 27.36 | K114: 0.001 | O114: 0.003 | P114: 0.0007858778626 | BF114: 12.62 | BG114: 24.94046883 | BJ114: 10
C115: 16 | D115: 24.69 | K115: 0.001 | O115: 0.0002 | P115: 0.0007858778626 | BF115: 12.63 | BG115: 24.96072532 | BJ115: 10
C116: 14 | D116: 26.87 | K116: 0.001 | O116: 0.0004715637255 | P116: 0.0007858778626 | BF116: 12.64 | BG116: 24.98098181 | BJ116: 10
C117: 15 | D117: 32.77 | K117: 0.001 | O117: 0.0004 | P117: 0.0001 | BF117: 12.65 | BG117: 25.0012383 | BJ117: 10
C118: 15 | D118: 30.55 | K118: 0.001 | O118: 0.0004 | P118: 0.0004 | BF118: 12.66 | BG118: 25.02149479 | BJ118: 10
C119: 15 | D119: 26.63 | K119: 0.001 | O119: 0.0004 | P119: 0.0007858778626 | BF119: 12.67 | BG119: 25.04175128 | BJ119: 10
C120: 14 | D120: 26.88 | K120: 0.001 | O120: 0.0004715637255 | P120: 0.0007858778626 | BF120: 12.68 | BG120: 25.06200777 | BJ120: 10
C121: 13 | D121: 30.47 | K121: 0.001 | O121: 0.001 | P121: 0.0004 | BF121: 12.69 | BG121: 25.08226426 | BJ121: 10
C122: 15 | D122: 29.7 | K122: 0.001 | O122: 0.0004 | P122: 0.0004 | BF122: 12.7 | BG122: 25.10252075 | BJ122: 10
C123: 16 | D123: 37.84 | K123: 0.001 | O123: 0.0002 | P123: 0.0001 | BF123: 12.71 | BG123: 25.12277724 | BJ123: 10
C124: 13 | D124: 29.26 | K124: 0.001 | O124: 0.001 | P124: 0.0004 | BF124: 12.72 | BG124: 25.14303373 | BJ124: 10
C125: 15 | D125: 22.93 | K125: 0.001 | O125: 0.0004 | P125: 0.0015 | BF125: 12.73 | BG125: 25.16329022 | BJ125: 10
C126: 14 | D126: 34.27 | K126: 0.001 | O126: 0.0004715637255 | P126: 0.0001 | BF126: 12.74 | BG126: 25.18354671 | BJ126: 10
C127: 16 | D127: 34.78 | K127: 0.001 | O127: 0.0002 | P127: 0.0001 | BF127: 12.75 | BG127: 25.2038032 | BJ127: 10
C128: 14 | D128: 29.77 | K128: 0.001 | O128: 0.0004715637255 | P128: 0.0004 | BF128: 12.76 | BG128: 25.22405969 | BJ128: 10
C129: 14 | D129: 29.65 | K129: 0.001 | O129: 0.0004715637255 | P129: 0.0004 | BF129: 12.77 | BG129: 25.24431618 | BJ129: 10
C130: 16 | D130: 29.97 | K130: 0.001 | O130: =IF(C130=12,$M$4,IF(C130=13,$M$5,IF(C130=14,$M$6,IF(C130=15,$M$7,$M$8)))) -> 0.0002 | P130: =IF(D130<20,$M$14,IF(D130<24,$M$15,IF(D130<28,$M$16,IF(D130<32,$M$17,$M$18)))) -> 0.0004 | BF130: 12.78 | BG130: 25.26457267 | BJ130: 10
C131: 12 | D131: 10.97 | K131: =1/1000 -> 0.001 | O131: 0.003 | P131: 0.005 | BF131: 12.79 | BG131: =$I$8+$I$10*BF131 -> 25.28482916 | BH131: =IF($AD$9=1,$W$3+$V$3*BF131,#N/A) ->  | BI131: =IF($AD$12=1,$AA$3+$Z$3*BF131,#N/A) ->  | BJ131: 10
C132: 16 | D132: 37.86 | K132: 0.001 | O132: 0.0002 | P132: 0.0001 | BF132: 12.8 | BG132: 25.30508565 | BJ132: 10
C133: 16 | D133: 35.28 | K133: 0.001 | O133: 0.0002 | P133: 0.0001 | BF133: 12.81 | BG133: 25.32534214 | BJ133: 10
C134: 15 | D134: 26.23 | K134: 0.001 | O134: 0.0004 | P134: 0.0007858778626 | BF134: 12.82 | BG134: 25.34559863 | BJ134: 10
C135: 13 | D135: 22.04 | K135: 0.001 | O135: 0.001 | P135: 0.0015 | BF135: 12.83 | BG135: 25.36585512 | BJ135: 10
C136: 15 | D136: 26.3 | K136: 0.001 | O136: 0.0004 | P136: 0.0007858778626 | BF136: 12.84 | BG136: 25.38611161 | BJ136: 10
C137: 13 | D137: 14.1 | K137: 0.001 | O137: 0.001 | P137: 0.005 | BF137: 12.85 | BG137: 25.4063681 | BJ137: 10
C138: 16 | D138: 38.7 | K138: 0.001 | O138: 0.0002 | P138: 0.0001 | BF138: 12.86 | BG138: 25.42662459 | BJ138: 10
C139: 14 | D139: 25.84 | K139: 0.001 | O139: 0.0004715637255 | P139: 0.0007858778626 | BF139: 12.87 | BG139: 25.44688108 | BJ139: 10
C140: 15 | D140: 32.84 | K140: 0.001 | O140: 0.0004 | P140: 0.0001 | BF140: 12.88 | BG140: 25.46713757 | BJ140: 10
C141: 14 | D141: 27.02 | K141: 0.001 | O141: 0.0004715637255 | P141: 0.0007858778626 | BF141: 12.89 | BG141: 25.48739406 | BJ141: 10
C142: 14 | D142: 33.73 | K142: 0.001 | O142: 0.0004715637255 | P142: 0.0001 | BF142: 12.9 | BG142: 25.50765055 | BJ142: 10
C143: 14 | D143: 30.52 | K143: 0.001 | O143: 0.0004715637255 | P143: 0.0004 | BF143: 12.91 | BG143: 25.52790704 | BJ143: 10
C144: 13 | D144: 31.63 | K144: 0.001 | O144: 0.001 | P144: 0.0004 | BF144: 12.92 | BG144: 25.54816353 | BJ144: 10
C145: 12 | D145: 20.24 | K145: 0.001 | O145: 0.003 | P145: 0.0015 | BF145: 12.93 | BG145: 25.56842002 | BJ145: 10
C146: 16 | D146: 35.22 | K146: 0.001 | O146: 0.0002 | P146: 0.0001 | BF146: 12.94 | BG146: 25.58867651 | BJ146: 10
C147: 14 | D147: 28.6 | K147: 0.001 | O147: 0.0004715637255 | P147: 0.0004 | BF147: 12.95 | BG147: 25.608933 | BJ147: 10
C148: 13 | D148: 24.38 | K148: 0.001 | O148: 0.001 | P148: 0.0007858778626 | BF148: 12.96 | BG148: 25.62918949 | BJ148: 10
C149: 12 | D149: 7.97 | E149: lowest wage | K149: 0.001 | O149: 0.003 | P149: 0.005 | BF149: 12.97 | BG149: 25.64944598 | BJ149: 10
C150: 13 | D150: 28.58 | K150: 0.001 | O150: 0.001 | P150: 0.0004 | BF150: 12.98 | BG150: 25.66970247 | BJ150: 10
C151: 16 | D151: 29.08 | K151: 0.001 | O151: 0.0002 | P151: 0.0004 | BF151: 12.99 | BG151: 25.68995896 | BJ151: 10
C152: 13 | D152: 20.24 | K152: 0.001 | O152: 0.001 | P152: 0.0015 | BF152: 13 | BG152: 25.71021545 | BJ152: 10
C153: 15 | D153: 27.13 | K153: 0.001 | O153: 0.0004 | P153: 0.0007858778626 | BF153: 13.01 | BG153: 25.73047194 | BJ153: 10
C154: 15 | D154: 33.16 | K154: 0.001 | O154: 0.0004 | P154: 0.0001 | BF154: 13.02 | BG154: 25.75072843 | BJ154: 10
C155: 15 | D155: 25.28 | K155: 0.001 | O155: 0.0004 | P155: 0.0007858778626 | BF155: 13.03 | BG155: 25.77098492 | BJ155: 10
C156: 14 | D156: 34.84 | K156: 0.001 | O156: 0.0004715637255 | P156: 0.0001 | BF156: 13.04 | BG156: 25.79124141 | BJ156: 10
C157: 12 | D157: 20.89 | K157: 0.001 | O157: 0.003 | P157: 0.0015 | BF157: 13.05 | BG157: 25.8114979 | BJ157: 10
C158: 15 | D158: 38.67 | K158: 0.001 | O158: 0.0004 | P158: 0.0001 | BF158: 13.06 | BG158: 25.83175439 | BJ158: 10
C159: 15 | D159: 23.45 | K159: 0.001 | O159: 0.0004 | P159: 0.0015 | BF159: 13.07 | BG159: 25.85201088 | BJ159: 10
C160: 12 | D160: 24.57 | K160: 0.001 | O160: 0.003 | P160: 0.0007858778626 | BF160: 13.08 | BG160: 25.87226736 | BJ160: 10
C161: 15 | D161: 31.4 | K161: 0.001 | O161: 0.0004 | P161: 0.0004 | BF161: 13.09 | BG161: 25.89252385 | BJ161: 10
C162: 14 | D162: 34.2 | K162: 0.001 | O162: 0.0004715637255 | P162: 0.0001 | BF162: 13.1 | BG162: 25.91278034 | BJ162: 10
C163: 16 | D163: 22.12 | K163: 0.001 | O163: 0.0002 | P163: 0.0015 | BF163: 13.11 | BG163: 25.93303683 | BJ163: 10
C164: 12 | D164: 33.56 | K164: 0.001 | O164: 0.003 | P164: 0.0001 | BF164: 13.12 | BG164: 25.95329332 | BJ164: 10
C165: 12 | D165: 28.41 | K165: 0.001 | O165: 0.003 | P165: 0.0004 | BF165: 13.13 | BG165: 25.97354981 | BJ165: 10
C166: 14 | D166: 26.9 | K166: 0.001 | O166: 0.0004715637255 | P166: 0.0007858778626 | BF166: 13.14 | BG166: 25.9938063 | BJ166: 10
C167: 15 | D167: 27.6 | K167: 0.001 | O167: 0.0004 | P167: 0.0007858778626 | BF167: 13.15 | BG167: 26.01406279 | BJ167: 10
C168: 13 | D168: 19.47 | K168: 0.001 | O168: 0.001 | P168: 0.005 | BF168: 13.16 | BG168: 26.03431928 | BJ168: 10
C169: 14 | D169: 35.68 | K169: 0.001 | O169: 0.0004715637255 | P169: 0.0001 | BF169: 13.17 | BG169: 26.05457577 | BJ169: 10
C170: 12 | D170: 32.65 | K170: 0.001 | O170: 0.003 | P170: 0.0001 | BF170: 13.18 | BG170: 26.07483226 | BJ170: 10
C171: 12 | D171: 28.61 | K171: 0.001 | O171: 0.003 | P171: 0.0004 | BF171: 13.19 | BG171: 26.09508875 | BJ171: 10
C172: 12 | D172: 30.54 | K172: 0.001 | O172: 0.003 | P172: 0.0004 | BF172: 13.2 | BG172: 26.11534524 | BJ172: 10
C173: 16 | D173: 21.63 | K173: 0.001 | O173: 0.0002 | P173: 0.0015 | BF173: 13.21 | BG173: 26.13560173 | BJ173: 10
C174: 13 | D174: 25.48 | K174: 0.001 | O174: 0.001 | P174: 0.0007858778626 | BF174: 13.22 | BG174: 26.15585822 | BJ174: 10
C175: 15 | D175: 29.71 | K175: 0.001 | O175: 0.0004 | P175: 0.0004 | BF175: 13.23 | BG175: 26.17611471 | BJ175: 10
C176: 12 | D176: 27.49 | K176: 0.001 | O176: 0.003 | P176: 0.0007858778626 | BF176: 13.24 | BG176: 26.1963712 | BJ176: 10
C177: 12 | D177: 30.61 | K177: 0.001 | O177: 0.003 | P177: 0.0004 | BF177: 13.25 | BG177: 26.21662769 | BJ177: 10
C178: 14 | D178: 28.52 | K178: 0.001 | O178: 0.0004715637255 | P178: 0.0004 | BF178: 13.26 | BG178: 26.23688418 | BJ178: 10
C179: 15 | D179: 30.29 | K179: 0.001 | O179: 0.0004 | P179: 0.0004 | BF179: 13.27 | BG179: 26.25714067 | BJ179: 10
C180: 12 | D180: 27.61 | K180: 0.001 | O180: 0.003 | P180: 0.0007858778626 | BF180: 13.28 | BG180: 26.27739716 | BJ180: 10
C181: 15 | D181: 19.75 | K181: 0.001 | O181: 0.0004 | P181: 0.005 | BF181: 13.29 | BG181: 26.29765365 | BJ181: 10
C182: 13 | D182: 24.62 | K182: 0.001 | O182: 0.001 | P182: 0.0007858778626 | BF182: 13.3 | BG182: 26.31791014 | BJ182: 10
C183: 16 | D183: 33.28 | K183: 0.001 | O183: 0.0002 | P183: 0.0001 | BF183: 13.31 | BG183: 26.33816663 | BJ183: 10
C184: 14 | D184: 22.47 | K184: 0.001 | O184: 0.0004715637255 | P184: 0.0015 | BF184: 13.32 | BG184: 26.35842312 | BJ184: 10
C185: 13 | D185: 32.1 | K185: 0.001 | O185: 0.001 | P185: 0.0001 | BF185: 13.33 | BG185: 26.37867961 | BJ185: 10
C186: 14 | D186: 33.33 | K186: 0.001 | O186: 0.0004715637255 | P186: 0.0001 | BF186: 13.34 | BG186: 26.3989361 | BJ186: 10
C187: 14 | D187: 36.15 | K187: 0.001 | O187: 0.0004715637255 | P187: 0.0001 | BF187: 13.35 | BG187: 26.41919259 | BJ187: 10
C188: 16 | D188: 29.83 | K188: 0.001 | O188: 0.0002 | P188: 0.0004 | BF188: 13.36 | BG188: 26.43944908 | BJ188: 10
C189: 13 | D189: 28.27 | K189: 0.001 | O189: 0.001 | P189: 0.0004 | BF189: 13.37 | BG189: 26.45970557 | BJ189: 10
C190: 16 | D190: 34.59 | K190: 0.001 | O190: 0.0002 | P190: 0.0001 | BF190: 13.38 | BG190: 26.47996206 | BJ190: 10
C191: 12 | D191: 19.31 | K191: 0.001 | O191: 0.003 | P191: 0.005 | BF191: 13.39 | BG191: 26.50021855 | BJ191: 10
C192: 13 | D192: 18.72 | K192: 0.001 | O192: 0.001 | P192: 0.005 | BF192: 13.4 | BG192: 26.52047504 | BJ192: 10
C193: 14 | D193: 22.02 | K193: 0.001 | O193: 0.0004715637255 | P193: 0.0015 | BF193: 13.41 | BG193: 26.54073153 | BJ193: 10
C194: 16 | D194: 30.51 | K194: 0.001 | O194: =IF(C194=12,$M$4,IF(C194=13,$M$5,IF(C194=14,$M$6,IF(C194=15,$M$7,$M$8)))) -> 0.0002 | P194: =IF(D194<20,$M$14,IF(D194<24,$M$15,IF(D194<28,$M$16,IF(D194<32,$M$17,$M$18)))) -> 0.0004 | BF194: 13.42 | BG194: 26.56098802 | BJ194: 10
C195: 14 | D195: 28.82 | K195: =1/1000 -> 0.001 | O195: 0.0004715637255 | P195: 0.0004 | BF195: 13.43 | BG195: =$I$8+$I$10*BF195 -> 26.58124451 | BH195: =IF($AD$9=1,$W$3+$V$3*BF195,#N/A) ->  | BI195: =IF($AD$12=1,$AA$3+$Z$3*BF195,#N/A) ->  | BJ195: 10
C196: 14 | D196: 30.18 | K196: 0.001 | O196: 0.0004715637255 | P196: 0.0004 | BF196: 13.44 | BG196: 26.601501 | BJ196: 10
C197: 12 | D197: 15.92 | K197: 0.001 | O197: 0.003 | P197: 0.005 | BF197: 13.45 | BG197: 26.62175749 | BJ197: 10
C198: 16 | D198: 33.75 | K198: 0.001 | O198: 0.0002 | P198: 0.0001 | BF198: 13.46 | BG198: 26.64201398 | BJ198: 10
C199: 16 | D199: 37.05 | K199: 0.001 | O199: 0.0002 | P199: 0.0001 | BF199: 13.47 | BG199: 26.66227047 | BJ199: 10
C200: 13 | D200: 27.09 | K200: 0.001 | O200: 0.001 | P200: 0.0007858778626 | BF200: 13.48 | BG200: 26.68252696 | BJ200: 10
... 802 more rows

Sheet Doc
O33: Screenshot of the dialog box produced by clicking the MC Sim button.

Sheet SampleFn (hidden)
A1: This sheet explains how the SAMPLE(PopRange, ProbRange, n, Optional WithRep) function works | I1: To use the SAMPLE function: | L1: 1) Enter population data, X(s) and Y, and probability of selection on the 1st draw (prob column need not be contiguous with pop data)
L2: 2) Select a n x pop col (including prob) range of cells
A3: Be sure to click on cells to see the formulas being used; press F9 to recalculate | L3: 3) Type the formula in the formula bar, =sample(cell range with pop data, cell range of a single column with probs, sample size value which should be the same as the number of rows selected in step 2, a 1 if sampling with replacement or a 0 if sampling without replacement)
L4: 4) Simultaneously hold down Ctrl-Shift and then press the Enter key --> function outputs the obs chosen in the sample, with the probability of selection on the 1st draw
I5: Click ON cells I9, M9, and K9 to see how the sample function works
A6: Excel's RAND() function is U[0,1] | I6: Click IN a sample function cell to edit it, Ctrl-Shift-Enter to input; Esc to exit
B7: =RAND() -> 0.2113526451 | C7: press F9 | E7: Population | G7: Prob | I7: Sample -- draw 2 from pop w rep | M7: Sample -- draw 2 from pop w/o rep | R7: Sample -- draw 3 from pop w/o rep
B8: The values above bounce around in the [0,1] | E8: X | F8: Y | G8: 1st Draw | I8: Prob | J8: X | K8: Y | M8: Prob | N8: X | O8: Y | R8: Prob | S8: X | T8: Y
B9: as you press F9. | E9: 10 | F9: 56 | G9: 0.4 | I9: =[1]!sample(E9:F12,G9:G12,2,1) -> 0.3 | J9: 10.3 | K9: 57 | M9: =[1]!sample(E9:F12,G9:G12,2,0) -> 0.2 | N9: 9.9 | O9: 58 | R9: =[1]!sample(E9:F12,G9:G12,3,0) -> 0.3 | S9: 10.3 | T9: 57
E10: 10.3 | F10: 57 | G10: 0.3 | I10: 0.3 | J10: 10.3 | K10: 57 | M10: 0.4 | N10: 10 | O10: 56 | R10: 0.2 | S10: 9.9 | T10: 58
E11: 9.9 | F11: 58 | G11: 0.2 | R11: 0.4 | S11: 10 | T11: 56
E12: 10.2 | F12: 58 | G12: 0.1 | I12: Was the first obs chosen? | M12: Was the first obs chosen? | R12: Was the first obs chosen?
G13: =SUM(G9:G12) -> 1 | I13: =IF(OR(I9=0.4,I10=0.4),1,0) -> 0 | M13: =IF(OR(M9=0.4,M10=0.4),1,0) -> 1 | R13: =IF(OR(R9=0.4,R10=0.4,R11=0.4),1,0) -> 1
G14: Probs should sum to 1. | M14: Testing the SAMPLE function with and without replacament
M15: Click the MSSim button to track cells I13 and M13
M16: to check the SAMPLE function. See right for a picture -->
M17: Here are our results for 10,000 samples (repetitions):
A18: SAMPLE function pseudo-code (full code available in the Visual Basic module in this workbook, press Alt-F11) | M18: SampleFn!$I$13 | O18: SampleFn!$M$13
M19: Average | N19: 0.6374 | O19: Average | P19: 0.7214 | Q19: +/- 0.004 (=0.4483/sqrt(10,000))
M20: SD | N20: 0.480774744 | O20: SD | P20: 0.4483326223
M21: Max | N21: 1 | O21: Max | P21: 1
M22: Min | N22: 0 | O22: Min | P22: 0
M23: The exact probability of including the first obs when sampling WITH replacement is
M24: =1-0.6*0.6 -> 0.64 | N24: = 1 - prob 1st obs not taken in 1st draw*prob 1st obs not taken in 2nd draw
M25: This agrees with the simulation result in cell J19 above.
M26: The exact probability of including the first obs when sampling WITHOUT replacement is
M27: 0.4 | N27: prob 1st obs taken in 1st draw
M28: =0.3*(0.4/0.7) -> 0.1714285714 | N28: prob 2nd obs taken in 1st draw and 1st obs taken in 2nd draw
M29: =0.2*(0.4/0.8) -> 0.1 | N29: prob 3rd obs taken in 1st draw and 1st obs taken in 2nd draw
M30: =0.1*(0.4/0.9) -> 0.04444444444 | N30: prob 4th obs taken in 1st draw and 1st obs taken in 2nd draw
M31: =SUM(M27:M30) -> 0.7158730159
M32: This agrees with the simulation result in cell L19 above.
M34: When sampling 3 observations without replacement (traacking cell R13) yielded
M35: Summary Statistics
M36: Average | N36: 0.9232 | P36: +/- 0.003 (=0.2663/sqrt(10,000))
M37: SD | N37: 0.2662871587
M38: Max | N38: 1
M39: Min | N39: 0
M40: Tedious calculation shows that the exact expected value is
M41: =0.7+2/9 -> 0.9222222222
M42: Once again, the sample function without replacement works as advertised.
M43: The exact probability of including the first obs when sampling WITH replacement is
A44: Sampling with replacement loops over the code above for as many times as needed to produce the requested sample size. | M44: =1-0.6^3 -> 0.784 | N44: =1 - prob 1st obs not taken in 1st draw3
A45: Sampling WITHOUT replacement requires further code, which is presented and explained below. | M45: It makes sense that the probability of inclusion is greater WITHOUT than WITH replacement
B46: IF SAMPLING WITHOUT REPLACEMENT, ADJUST THE INTERVAL | M46: because once another observation is selected, it is removed and increases the chances of selecting
M47: the first obs.
M48: Computing the exact probability of inclusion WITHOUT replacement quickly becomes unwieldy as n rises.
M49: In practice, WITH replacement is assumed in computing the probability of inclusion.
M50: For more detail on this issue, please see ExploringWRvWOR.xls available at
M51: www.depauw.edu/learn/stata
